{"text_format":"1","workbook":"xlsx","n_sheets":1,"sheets":["Pressupost Projecte Ad"],"not_rendered":{"charts":0,"images":1,"macros":0,"external_links":0,"defined_names":6,"comments":1,"pivot_tables":0},"unopened":[],"bounds":{"document_bytes":16777216,"sheet_cells":100000,"rows_first":2000,"rows_last":500,"rows_between":2000,"halvings":0,"cell_chars":16384,"cell_head_chars":4096},"cells_cut":0,"cells_raw":0,"read":"whole","date_system":"1900"}

{"sheet":"Pressupost Projecte Ad","index":0,"n_rows":118,"n_cols":6,"rows_kept":118,"cut":false,"hidden":false,"merged":[[115,0,115,3],[116,0,116,3],[117,0,117,3],[108,0,108,3],[111,0,111,3],[112,0,112,3],[113,0,113,3],[109,0,109,3],[110,0,110,3],[114,0,114,3],[107,0,107,3],[2,0,3,1],[103,0,103,3],[104,0,104,3],[105,0,105,3],[106,0,106,3],[100,0,100,3],[99,2,99,3],[5,2,5,3],[0,2,0,5],[1,2,1,5],[2,2,3,5],[4,2,4,5],[101,0,101,3]]}
[null,null,"Document bàsic 3"]
[null,null,"Àmbit temàtic \"A\" ENFORTIMENT: Creació i Consolidació"]
["CONVOCATÒRIA 2024 DEL PROGRAMA DE SUBVENCIONS DE L’AJUNTAMENT DE BARCELONA PER L’ENFORTIMENT DE L’ECONOMIA SOCIAL I SOLIDÀRIA I PER LA INTERCOOPERACIÓ EN L’ESTRATÈGIA #ESSBCN2030 - ENFORTIM L’ESS 2024\n",null,"Modalitat Ac. Digitalització: Facilitar processos de digitalització per l’enfortiment de les empreses i organitzacions de l’ESS, orientada al desenvolupament dels objectius de l’Estratègia #ESSBCN2030 i del PIESS 2024-2027"]
[]
[null,null,"Atenció: Cal emplenar les cel·les en blanc i, si escau, afegir les files necessàries "]
[null,null,"Abans d'emplenar, consultar les anotacions a peu de pàgina"]
[]
["DADES BÀSIQUES"]
["Nom de la persona física/jurídica",null,null,null,null,"  "]
["NIF de la persona física/jurídica"]
["Nom del projecte subvencionable"]
["Import total del projecte subvencionable"]
["Import imputable a la subvenció municipal"]
["Import de l'aportació / Cofinançament de l'organització",{"$f":"B12-B13","v":0}]
["% de l'import sol·licitat respecte el total del projecte subvencionable",{"$f":"B13/B12","v":{"$error":"#DIV/0!"}},"* La quantia de la subvenció atorgada no superarà el 80% de la despesa total del projecte a subvencionar. "]
[]
["PREVISIÓ DE DESPESES DEL PROJECTE SUBVENCIONABLE"]
["Partides","Import imputable a la subvenció municipal","Import de l'aportació / Cofinançament de l'organització","Import total del projecte"]
["D1. Nòmines i seguretat social (règim general o socis/es cooperativistes en règim d’autònoms) del personal propi vinculat directament al projecte subvencionables (màxim 25% import subvenció)",{"$f":"SUM(B20:B23)","v":0},{"$f":"SUM(C20:C23)","v":0},{"$f":"SUM(DespesesProjecte[[#This Row],[Import imputable a la subvenció municipal]],DespesesProjecte[[#This Row],[Import de l''aportació / Cofinançament de l''organització]])","v":0}]
[null,null,null,{"$f":"SUM(DespesesProjecte[[#This Row],[Import imputable a la subvenció municipal]],DespesesProjecte[[#This Row],[Import de l''aportació / Cofinançament de l''organització]])","v":0}]
[null,null,null,{"$f":"SUM(DespesesProjecte[[#This Row],[Import imputable a la subvenció municipal]],DespesesProjecte[[#This Row],[Import de l''aportació / Cofinançament de l''organització]])","v":0}]
[null,null,null,{"$f":"SUM(DespesesProjecte[[#This Row],[Import imputable a la subvenció municipal]],DespesesProjecte[[#This Row],[Import de l''aportació / Cofinançament de l''organització]])","v":0}]
[null,null,null,{"$f":"SUM(DespesesProjecte[[#This Row],[Import imputable a la subvenció municipal]],DespesesProjecte[[#This Row],[Import de l''aportació / Cofinançament de l''organització]])","v":0}]
["D2. Nòmines i seguretat social d’estudiants en pràctiques (amb un límit del 80% del seu sou brut corresponent al període de l’execució de la subvenció) - excepte si la seguretat social està bonificada",{"$f":"SUM(B25:B28)","v":0},{"$f":"SUM(C25:C28)","v":0},{"$f":"SUM(DespesesProjecte[[#This Row],[Import imputable a la subvenció municipal]],DespesesProjecte[[#This Row],[Import de l''aportació / Cofinançament de l''organització]])","v":0}]
[null,null,null,{"$f":"SUM(DespesesProjecte[[#This Row],[Import imputable a la subvenció municipal]],DespesesProjecte[[#This Row],[Import de l''aportació / Cofinançament de l''organització]])","v":0}]
[null,null,null,{"$f":"SUM(DespesesProjecte[[#This Row],[Import imputable a la subvenció municipal]],DespesesProjecte[[#This Row],[Import de l''aportació / Cofinançament de l''organització]])","v":0}]
[null,null,null,{"$f":"SUM(DespesesProjecte[[#This Row],[Import imputable a la subvenció municipal]],DespesesProjecte[[#This Row],[Import de l''aportació / Cofinançament de l''organització]])","v":0}]
[null,null,null,{"$f":"SUM(DespesesProjecte[[#This Row],[Import imputable a la subvenció municipal]],DespesesProjecte[[#This Row],[Import de l''aportació / Cofinançament de l''organització]])","v":0}]
["TOTAL DE DESPESES DEL PERSONAL ",{"$f":"B19+B24","v":0},{"$f":"C19+C24","v":0},{"$f":"D19+D24","v":0}]
["D3. Treballs realitzats per professionals i empreses externes directament vinculades al projecte (inclou despeses de l'estudiant en pràctiques: taxes i altres despeses relacionades amb el conveni de pràctiques)",{"$f":"SUM(B31:B34)","v":0},{"$f":"SUM(C31:C34)","v":0},{"$f":"SUM(DespesesProjecte[[#This Row],[Import imputable a la subvenció municipal]],DespesesProjecte[[#This Row],[Import de l''aportació / Cofinançament de l''organització]])","v":0}]
[null,null,null,{"$f":"SUM(DespesesProjecte[[#This Row],[Import imputable a la subvenció municipal]],DespesesProjecte[[#This Row],[Import de l''aportació / Cofinançament de l''organització]])","v":0}]
[null,null,null,{"$f":"SUM(DespesesProjecte[[#This Row],[Import imputable a la subvenció municipal]],DespesesProjecte[[#This Row],[Import de l''aportació / Cofinançament de l''organització]])","v":0}]
[null,null,null,{"$f":"SUM(DespesesProjecte[[#This Row],[Import imputable a la subvenció municipal]],DespesesProjecte[[#This Row],[Import de l''aportació / Cofinançament de l''organització]])","v":0}]
[null,null,null,{"$f":"SUM(DespesesProjecte[[#This Row],[Import imputable a la subvenció municipal]],DespesesProjecte[[#This Row],[Import de l''aportació / Cofinançament de l''organització]])","v":0}]
["D4. Despeses de matriculació en accions formatives externes amb una durada mínima de 150 hores i/o un cost mínim de 600€ per a cada participant",{"$f":"SUM(B36:B38)","v":0},{"$f":"SUM(C36:C38)","v":0},{"$f":"SUM(DespesesProjecte[[#This Row],[Import imputable a la subvenció municipal]],DespesesProjecte[[#This Row],[Import de l''aportació / Cofinançament de l''organització]])","v":0}]
[null,null,null,{"$f":"SUM(DespesesProjecte[[#This Row],[Import imputable a la subvenció municipal]],DespesesProjecte[[#This Row],[Import de l''aportació / Cofinançament de l''organització]])","v":0}]
[null,null,null,{"$f":"SUM(DespesesProjecte[[#This Row],[Import imputable a la subvenció municipal]],DespesesProjecte[[#This Row],[Import de l''aportació / Cofinançament de l''organització]])","v":0}]
[null,null,null,{"$f":"SUM(DespesesProjecte[[#This Row],[Import imputable a la subvenció municipal]],DespesesProjecte[[#This Row],[Import de l''aportació / Cofinançament de l''organització]])","v":0}]
["D5. Quotes d'inscripció, lloguer de sistemes de software i hardware i manteniment",{"$f":"SUM(B40:B42)","v":0},{"$f":"SUM(C40:C42)","v":0},{"$f":"SUM(DespesesProjecte[[#This Row],[Import imputable a la subvenció municipal]],DespesesProjecte[[#This Row],[Import de l''aportació / Cofinançament de l''organització]])","v":0}]
[null,null,null,{"$f":"SUM(DespesesProjecte[[#This Row],[Import imputable a la subvenció municipal]],DespesesProjecte[[#This Row],[Import de l''aportació / Cofinançament de l''organització]])","v":0}]
[null,null,null,{"$f":"SUM(DespesesProjecte[[#This Row],[Import imputable a la subvenció municipal]],DespesesProjecte[[#This Row],[Import de l''aportació / Cofinançament de l''organització]])","v":0}]
[null,null,null,{"$f":"SUM(DespesesProjecte[[#This Row],[Import imputable a la subvenció municipal]],DespesesProjecte[[#This Row],[Import de l''aportació / Cofinançament de l''organització]])","v":0}]
["TOTAL D'ALTRES DESPESES DIRECTES ",{"$f":"SUM(B30+B35+B39)","v":0},{"$f":"SUM(C30+C35+C39)","v":0},{"$f":"SUM(D30+D35+D39)","v":0}]
["TOTAL DESPESES DIRECTES (aquelles que s’identifiquen directament amb el projecte subvencionable)",{"$f":"SUM(B29,B43)","v":0},{"$f":"SUM(C29,C43)","v":0},{"$f":"SUM(D29,D43)","v":0}]
["I1. Personal de suport al projecte (nòmines i seguretat social) ",{"$f":"SUM(B46:B49)","v":0},{"$f":"SUM(C46:C49)","v":0},{"$f":"SUM(DespesesProjecte[[#This Row],[Import imputable a la subvenció municipal]],DespesesProjecte[[#This Row],[Import de l''aportació / Cofinançament de l''organització]])","v":0}]
[null,null,null,{"$f":"SUM(DespesesProjecte[[#This Row],[Import imputable a la subvenció municipal]],DespesesProjecte[[#This Row],[Import de l''aportació / Cofinançament de l''organització]])","v":0}]
[null,null,null,{"$f":"SUM(DespesesProjecte[[#This Row],[Import imputable a la subvenció municipal]],DespesesProjecte[[#This Row],[Import de l''aportació / Cofinançament de l''organització]])","v":0}]
[null,null,null,{"$f":"SUM(DespesesProjecte[[#This Row],[Import imputable a la subvenció municipal]],DespesesProjecte[[#This Row],[Import de l''aportació / Cofinançament de l''organització]])","v":0}]
[null,null,null,{"$f":"SUM(DespesesProjecte[[#This Row],[Import imputable a la subvenció municipal]],DespesesProjecte[[#This Row],[Import de l''aportació / Cofinançament de l''organització]])","v":0}]
["I2. Assegurances",{"$f":"SUM(B51:B54)","v":0},{"$f":"SUM(C51:C54)","v":0},{"$f":"SUM(DespesesProjecte[[#This Row],[Import imputable a la subvenció municipal]],DespesesProjecte[[#This Row],[Import de l''aportació / Cofinançament de l''organització]])","v":0}]
[null,null,null,{"$f":"SUM(DespesesProjecte[[#This Row],[Import imputable a la subvenció municipal]],DespesesProjecte[[#This Row],[Import de l''aportació / Cofinançament de l''organització]])","v":0}]
[null,null,null,{"$f":"SUM(DespesesProjecte[[#This Row],[Import imputable a la subvenció municipal]],DespesesProjecte[[#This Row],[Import de l''aportació / Cofinançament de l''organització]])","v":0}]
[null,null,null,{"$f":"SUM(DespesesProjecte[[#This Row],[Import imputable a la subvenció municipal]],DespesesProjecte[[#This Row],[Import de l''aportació / Cofinançament de l''organització]])","v":0}]
[null,null,null,{"$f":"SUM(DespesesProjecte[[#This Row],[Import imputable a la subvenció municipal]],DespesesProjecte[[#This Row],[Import de l''aportació / Cofinançament de l''organització]])","v":0}]
["I3. Amortització",{"$f":"SUM(B56:B59)","v":0},{"$f":"SUM(C56:C59)","v":0},{"$f":"SUM(DespesesProjecte[[#This Row],[Import imputable a la subvenció municipal]],DespesesProjecte[[#This Row],[Import de l''aportació / Cofinançament de l''organització]])","v":0}]
[null,null,null,{"$f":"SUM(DespesesProjecte[[#This Row],[Import imputable a la subvenció municipal]],DespesesProjecte[[#This Row],[Import de l''aportació / Cofinançament de l''organització]])","v":0}]
[null,null,null,{"$f":"SUM(DespesesProjecte[[#This Row],[Import imputable a la subvenció municipal]],DespesesProjecte[[#This Row],[Import de l''aportació / Cofinançament de l''organització]])","v":0}]
[null,null,null,{"$f":"SUM(DespesesProjecte[[#This Row],[Import imputable a la subvenció municipal]],DespesesProjecte[[#This Row],[Import de l''aportació / Cofinançament de l''organització]])","v":0}]
[null,null,null,{"$f":"SUM(DespesesProjecte[[#This Row],[Import imputable a la subvenció municipal]],DespesesProjecte[[#This Row],[Import de l''aportació / Cofinançament de l''organització]])","v":0}]
["I4. Lloguer de béns immobles",{"$f":"SUM(B61:B64)","v":0},{"$f":"SUM(C61:C64)","v":0},{"$f":"SUM(DespesesProjecte[[#This Row],[Import imputable a la subvenció municipal]],DespesesProjecte[[#This Row],[Import de l''aportació / Cofinançament de l''organització]])","v":0}]
[null,null,null,{"$f":"SUM(DespesesProjecte[[#This Row],[Import imputable a la subvenció municipal]],DespesesProjecte[[#This Row],[Import de l''aportació / Cofinançament de l''organització]])","v":0}]
[null,null,null,{"$f":"SUM(DespesesProjecte[[#This Row],[Import imputable a la subvenció municipal]],DespesesProjecte[[#This Row],[Import de l''aportació / Cofinançament de l''organització]])","v":0}]
[null,null,null,{"$f":"SUM(DespesesProjecte[[#This Row],[Import imputable a la subvenció municipal]],DespesesProjecte[[#This Row],[Import de l''aportació / Cofinançament de l''organització]])","v":0}]
[null,null,null,{"$f":"SUM(DespesesProjecte[[#This Row],[Import imputable a la subvenció municipal]],DespesesProjecte[[#This Row],[Import de l''aportació / Cofinançament de l''organització]])","v":0}]
["I5. Adquisició de materials i béns consumibles parcialment imputables al projecte",{"$f":"SUM(B66:B69)","v":0},{"$f":"SUM(C66:C69)","v":0},{"$f":"SUM(DespesesProjecte[[#This Row],[Import imputable a la subvenció municipal]],DespesesProjecte[[#This Row],[Import de l''aportació / Cofinançament de l''organització]])","v":0}]
[null,null,null,{"$f":"SUM(DespesesProjecte[[#This Row],[Import imputable a la subvenció municipal]],DespesesProjecte[[#This Row],[Import de l''aportació / Cofinançament de l''organització]])","v":0}]
[null,null,null,{"$f":"SUM(DespesesProjecte[[#This Row],[Import imputable a la subvenció municipal]],DespesesProjecte[[#This Row],[Import de l''aportació / Cofinançament de l''organització]])","v":0}]
[null,null,null,{"$f":"SUM(DespesesProjecte[[#This Row],[Import imputable a la subvenció municipal]],DespesesProjecte[[#This Row],[Import de l''aportació / Cofinançament de l''organització]])","v":0}]
[null,null,null,{"$f":"SUM(DespesesProjecte[[#This Row],[Import imputable a la subvenció municipal]],DespesesProjecte[[#This Row],[Import de l''aportació / Cofinançament de l''organització]])","v":0}]
["I6. Manteniment d’edificis i/o instal·lacions",{"$f":"SUM(B71:B74)","v":0},{"$f":"SUM(C71:C74)","v":0},{"$f":"SUM(DespesesProjecte[[#This Row],[Import imputable a la subvenció municipal]],DespesesProjecte[[#This Row],[Import de l''aportació / Cofinançament de l''organització]])","v":0}]
[null,null,null,{"$f":"SUM(DespesesProjecte[[#This Row],[Import imputable a la subvenció municipal]],DespesesProjecte[[#This Row],[Import de l''aportació / Cofinançament de l''organització]])","v":0}]
[null,null,null,{"$f":"SUM(DespesesProjecte[[#This Row],[Import imputable a la subvenció municipal]],DespesesProjecte[[#This Row],[Import de l''aportació / Cofinançament de l''organització]])","v":0}]
[null,null,null,{"$f":"SUM(DespesesProjecte[[#This Row],[Import imputable a la subvenció municipal]],DespesesProjecte[[#This Row],[Import de l''aportació / Cofinançament de l''organització]])","v":0}]
[null,null,null,{"$f":"SUM(DespesesProjecte[[#This Row],[Import imputable a la subvenció municipal]],DespesesProjecte[[#This Row],[Import de l''aportació / Cofinançament de l''organització]])","v":0}]
["I7. Comunicacions (telèfon, correus, connexió a internet)",{"$f":"SUM(B76:B79)","v":0},{"$f":"SUM(C76:C79)","v":0},{"$f":"SUM(DespesesProjecte[[#This Row],[Import imputable a la subvenció municipal]],DespesesProjecte[[#This Row],[Import de l''aportació / Cofinançament de l''organització]])","v":0}]
[null,null,null,{"$f":"SUM(DespesesProjecte[[#This Row],[Import imputable a la subvenció municipal]],DespesesProjecte[[#This Row],[Import de l''aportació / Cofinançament de l''organització]])","v":0}]
[null,null,null,{"$f":"SUM(DespesesProjecte[[#This Row],[Import imputable a la subvenció municipal]],DespesesProjecte[[#This Row],[Import de l''aportació / Cofinançament de l''organització]])","v":0}]
[null,null,null,{"$f":"SUM(DespesesProjecte[[#This Row],[Import imputable a la subvenció municipal]],DespesesProjecte[[#This Row],[Import de l''aportació / Cofinançament de l''organització]])","v":0}]
[null,null,null,{"$f":"SUM(DespesesProjecte[[#This Row],[Import imputable a la subvenció municipal]],DespesesProjecte[[#This Row],[Import de l''aportació / Cofinançament de l''organització]])","v":0}]
["I8. Despeses financeres",{"$f":"SUM(B81:B84)","v":0},{"$f":"SUM(C81:C84)","v":0},{"$f":"SUM(DespesesProjecte[[#This Row],[Import imputable a la subvenció municipal]],DespesesProjecte[[#This Row],[Import de l''aportació / Cofinançament de l''organització]])","v":0}]
[null,null,null,{"$f":"SUM(DespesesProjecte[[#This Row],[Import imputable a la subvenció municipal]],DespesesProjecte[[#This Row],[Import de l''aportació / Cofinançament de l''organització]])","v":0}]
[null,null,null,{"$f":"SUM(DespesesProjecte[[#This Row],[Import imputable a la subvenció municipal]],DespesesProjecte[[#This Row],[Import de l''aportació / Cofinançament de l''organització]])","v":0}]
[null,null,null,{"$f":"SUM(DespesesProjecte[[#This Row],[Import imputable a la subvenció municipal]],DespesesProjecte[[#This Row],[Import de l''aportació / Cofinançament de l''organització]])","v":0}]
[null,null,null,{"$f":"SUM(DespesesProjecte[[#This Row],[Import imputable a la subvenció municipal]],DespesesProjecte[[#This Row],[Import de l''aportació / Cofinançament de l''organització]])","v":0}]
["I9. Subministraments",{"$f":"SUM(B86:B89)","v":0},{"$f":"SUM(C86:C89)","v":0},{"$f":"SUM(DespesesProjecte[[#This Row],[Import imputable a la subvenció municipal]],DespesesProjecte[[#This Row],[Import de l''aportació / Cofinançament de l''organització]])","v":0}]
[null,null,null,{"$f":"SUM(DespesesProjecte[[#This Row],[Import imputable a la subvenció municipal]],DespesesProjecte[[#This Row],[Import de l''aportació / Cofinançament de l''organització]])","v":0}]
[null,null,null,{"$f":"SUM(DespesesProjecte[[#This Row],[Import imputable a la subvenció municipal]],DespesesProjecte[[#This Row],[Import de l''aportació / Cofinançament de l''organització]])","v":0}]
[null,null,null,{"$f":"SUM(DespesesProjecte[[#This Row],[Import imputable a la subvenció municipal]],DespesesProjecte[[#This Row],[Import de l''aportació / Cofinançament de l''organització]])","v":0}]
[null,null,null,{"$f":"SUM(DespesesProjecte[[#This Row],[Import imputable a la subvenció municipal]],DespesesProjecte[[#This Row],[Import de l''aportació / Cofinançament de l''organització]])","v":0}]
["I10. Treball realitzat per altres empreses, parcialment imputables al projecte (neteja, seguretat...)",{"$f":"SUM(B91:B94)","v":0},{"$f":"SUM(C91:C94)","v":0},{"$f":"SUM(DespesesProjecte[[#This Row],[Import imputable a la subvenció municipal]],DespesesProjecte[[#This Row],[Import de l''aportació / Cofinançament de l''organització]])","v":0}]
[null,null,null,{"$f":"SUM(DespesesProjecte[[#This Row],[Import imputable a la subvenció municipal]],DespesesProjecte[[#This Row],[Import de l''aportació / Cofinançament de l''organització]])","v":0}]
[null,null,null,{"$f":"SUM(DespesesProjecte[[#This Row],[Import imputable a la subvenció municipal]],DespesesProjecte[[#This Row],[Import de l''aportació / Cofinançament de l''organització]])","v":0}]
[null,null,null,{"$f":"SUM(DespesesProjecte[[#This Row],[Import imputable a la subvenció municipal]],DespesesProjecte[[#This Row],[Import de l''aportació / Cofinançament de l''organització]])","v":0}]
[null,null,null,{"$f":"SUM(DespesesProjecte[[#This Row],[Import imputable a la subvenció municipal]],DespesesProjecte[[#This Row],[Import de l''aportació / Cofinançament de l''organització]])","v":0}]
["TOTAL DESPESES INDIRECTES (es podran assignar al projecte subvencionable fent sevir un percentatge d’assignació) - Màxim 10% de l’import imputable a la subvenció municipal",{"$f":"SUM(B45,B50,B55,B60,B65,B70,B75,B80,B85,B90)","v":0},{"$f":"SUM(C45,C50,C55,C60,C65,C70,C75,C80,C85,C90)","v":0},{"$f":"SUM(D45,D50,D55,D60,D65,D70,D75,D80,D85,D90)","v":0}]
["TOTAL DE DESPESES PREVISTES",{"$f":"SUM(B44+B95)","v":0},{"$f":"SUM(C44+C95)","v":0},{"$f":"SUM(D44+D95)","v":0}]
[]
["Barcelona, "]
[]
["Segell de l'organització",null,"Signatura de la persona representant legal de l'organització"]
["Atenció: En cas de persones jurídiques no signeu aquest document ara.\nMés endavant signareu digitalment aquest document"]
["Atenció: En cas de registre físic per les persones físiques\nAfegiu la data i la signatura de la persona representant legal de l’organització aquí per tal que aquest document tingui validesa legal"]
[]
["Modalitat Ac. Digitalització: Facilitar processos de digitalització per l’enfortiment de les empreses i organitzacions de l’ESS, orientada al desenvolupament dels objectius de l’Estratègia #ESSBCN2030 i del PIESS 2024-2027"]
["1. La quantia de la subvenció atorgada no superarà el 80% de la despesa total del projecte a subvencionar. "]
["2. L'import màxim de subvenció per a la modalitat Ac és 10.000€. "]
["3. En el cas que la sol·licitud presentada sobrepassi l’import màxim, es considerarà com a import sol·licitat el màxim de l'establert a la convocatòria."]
["4. Es limita amb un màxim del  25% l’import de la subvenció per a despeses de personal propi que participa de forma directa i degudament al projecte. I un màxim del 80% per a nòmines i seguretat social d’estudiants en pràctiques (del seu sou brut corresponent al període de l’execució de la subvenció) - excepte si la seguretat social està bonificada."]
["5. No serà subvencionable la despesa de compra de software o hardware o despeses d’inversió, corresponents a partides de l'immobilitzat."]
["6. No es poden imputar en cap cas despeses d’inversió, corresponents a partides de l'immobilitzat, amb els diners de la subvenció atorgada en aquesta convocatòria específica. Sí es poden imputar a la part \nde contribució, sempre que siguin despeses dins el període executiu del projecte subvencionat i acreditables tal i com es descriu a les bases reguladores vigents."]
["7. No és possible subvencionar la creació/actualització de pàgines web, ni la dinamització de xarxes socials, en cap cas."]
["8. En cap cas es consideraran despeses subvencionables:\n> Els impostos indirectes quan siguin susceptibles de recuperació o compensació.\n> Les despeses d'inversió, incloses les adquisicions de béns mobles.\n> Les despeses realitzades amb data anterior a l'inici del projecte i data posterior a la finalització del projecte.\n> Altres despeses que s'indiquin a la convocatòria."]
["9. Són imputables en aquesta modalitat les despeses indirectes, detallades en l’apartat 13.3. de les bases reguladores; amb un màxim del 10% de l'import de la subvenció."]
["10. La retribució de les persones contractades en el marc del projecte subvencionat no pot ser inferior al Salari Mínim Interprofessional (SMI), ni a l'estipulada al corresponent conveni o marc normatiu de referència (punt 7 de les bases 2024: requisits dels projectes). "]
["11. Els materials produïts de difusió, estudis, informes o materials didàctics utilitzats, etc. en el cas de tractar-se de despesa elegible de la subvenció, hauran de tenir llicència Creative Commons -Compartir Igual- (share a like)  i no podrà tenir la condició –Sense Obres Derivades- (no derivate Works)."]
["12. Els projectes subvencionats han de fomentar activitats d'interès públic o social, les quals han de ser gratuïtes per a les persones participants o en cap cas el preu ha de suposar un obstacle per a la seva participació, buscant altres formes d'accés per a persones amb dificultats econòmiques. En el cas que hi hagi algun tipus de lucre, haurà de revertir en les pròpies activitats subvencionades."]
["13. L'Ajuntament de Barcelona i les seves entitats municipals en cap cas subvencionaran el mateix projecte, executat durant el mateix període, per cap altre procediment de concessió que no sigui el regulat per les bases reguladores."]
["14. El/la beneficiari/ària no podrà alterar en cap cas el destí de les subvencions concedides."]